bitfinex/quotes_ETHUSD_20240707
["timestamp","ask_amount","ask_price","bid_price","bid_amount"]
[1720315783084,2.093031,3050.4,3050.3,3.32198096]
[1720315784201,0.958,3050.4,3050.3,3.32198096]
[1720315784878,2.09306664,3050.4,3050.3,3.32198096]
[1720315785791,2.09306664,3050.4,3050.3,0.04362096]
[1720315785983,2.09306664,3050.4,3050.1,3.27855]
[1720315786181,0.958,3050.2,3050.1,3.27855]
[1720315786360,2.09306664,3050.2,3050.1,3.27855]
[1720315787057,4.44996664,3050.2,3050.1,3.27855]
[1720315787454,4.45002726,3050.2,3050.0,3.27867]
[1720315787676,2.09312726,3050.1,3049.8,3.27885]
[1720315787867,0.958,3049.9,3049.7,3.279]
[1720315788091,2.09321823,3049.8,3049.7,3.279]
[1720315790787,2.09324829,3049.8,3049.7,3.279]
[1720315791193,2.42250928,3050.2,3050.0,3.27867]
[1720315791194,2.3569,3050.2,3050.0,3.27867]
[1720315791498,2.09318661,3050.1,3050.0,3.27867]
[1720315792084,2.09315529,3050.1,3050.0,3.27867]
[1720315793975,0.958,3050.1,3050.0,3.27867]
[1720315794212,2.0931904,3050.1,3050.0,3.27867]
[1720315796267,2.0931904,3050.1,3050.0,3.32240975]
[1720315797206,0.958,3050.1,3050.0,3.32240975]
[1720315797369,2.09319856,3050.1,3050.0,3.32240975]
[1720315800517,0.958,3050.1,3050.0,3.32240975]
[1720315800699,3.33904807,3050.1,3050.0,3.32240975]
[1720315800904,2.09321228,3050.1,3050.0,3.32240975]
[1720315801125,0.958,3050.1,3050.0,3.32240975]
[1720315801405,2.09317505,3050.1,3050.0,3.32240975]
[1720315801608,1.13517505,3050.1,3050.0,6.66666327]
[1720315801784,6.306,3050.3,3050.2,6.55694]
[1720315802108,7.44101763,3050.3,3050.2,6.55694]
[1720315802807,6.306,3050.3,3050.2,6.55694]
[1720315802991,7.44104537,3050.3,3050.2,7.21700798]
[1720315803827,1.13504537,3050.3,3050.2,12.90907798]
[1720315803987,7.43,3050.4,3050.3,9.83508]
[1720315804586,2.2776,3051.2,3050.3,9.83508]
[1720315804587,2.2776,3051.2,3050.5,3.27815]
[1720315804785,1.13480629,3051.1,3051.0,3.27761]
[1720315804990,1.13480629,3051.1,3051.0,6.55522]
[1720315805408,0.958,3051.3,3051.2,6.55478]
[1720315805610,2.09268109,3051.3,3051.2,6.55478]
[1720315805924,0.958,3051.3,3051.2,6.55478]
[1720315806214,2.09266787,3051.3,3051.2,6.55478]
[1720315806592,2.09267608,3051.3,3051.2,6.55478]
[1720315806814,0.958,3051.3,3051.2,6.55478]
[1720315807887,6.306,3051.5,3051.4,3.27718]
[1720315808086,7.4406595,3051.5,3051.4,3.27718]
[1720315808315,1.1346595,3051.5,3051.4,6.55436]
[1720315808591,2.33010928,3052.0,3051.4,0.43260099]
[1720315808900,1.13451809,3051.9,3051.8,6.55334]
[1720315809117,2.3557738,3052.1,3051.8,3.27667]
[1720315809286,0.0567738,3052.1,3051.8,3.27667]
[1720315809491,6.306,3052.2,3052.1,6.55286]
[1720315810624,6.306,3052.2,3051.9,3.27663]
[1720315810796,2.96070928,3052.1,3051.9,3.27663]
[1720315811201,2.96070928,3052.1,3050.6,2.3232]
[1720315811401,2.299,3051.8,3051.1,3.27742]
[1720315811616,2.299,3051.3,3050.8,3.2778]
[1720315811790,2.33010928,3051.2,3050.8,3.2778]
[1720315812620,3.42362021,3051.2,3050.6,3.27803]
[1720315813028,3.42362021,3051.2,3050.8,3.27781]
[1720315813424,2.33010928,3051.2,3050.6,3.27803]
[1720315813800,2.33010928,3051.2,3050.7,3.27791]
[1720315815086,2.33010928,3051.2,3050.8,3.27781]
[1720315815489,2.33010928,3051.2,3050.6,6.556]
[1720315815784,2.33010928,3051.2,3050.7,3.27793]
[1720315815990,6.306,3051.3,3051.0,3.27754]
[1720315816293,6.306,3051.3,3051.1,3.27749]
[1720315818092,6.306,3051.3,3050.3,3.27832]
[1720315818093,2.33010928,3051.2,3050.3,3.27832]
[1720315818291,2.33010928,3051.2,3049.3,0.32011609]
[1720315818292,2.299,3051.0,3049.7,5.60214]
[1720315818537,0.06560928,3050.9,3050.5,3.27813]
[1720315819290,2.33010928,3051.2,3050.8,3.27773]
[1720315820031,2.33010928,3051.2,3050.9,0.05363905]
[1720315820213,2.33010928,3051.2,3050.9,3.27771]
[1720315820808,1.13487952,3051.1,3050.7,3.27786]
[1720315820993,1.13491752,3051.0,3050.8,0.05392402]
[1720315821194,0.06560928,3051.1,3050.7,3.27786]
[1720315821396,1.13491745,3051.0,3050.8,0.05389386]
[1720315821626,2.33010928,3050.9,3050.2,3.27845]
[1720315821864,2.2645,3050.6,3050.3,0.0540479]
[1720315822029,6.37160928,3050.5,3050.3,0.0540479]
[1720315822232,6.37160928,3050.5,3049.9,3.27876]
[1720315822454,6.37160928,3050.5,3050.0,3.33279035]
[1720315823943,6.37160928,3050.5,3050.2,3.27843]
[1720315824275,6.37160928,3050.5,3050.3,0.04830306]
[1720315824773,6.306,3050.5,3050.3,3.27835]
[1720315824942,6.306,3050.5,3050.4,3.27825]
[1720315825289,6.306,3050.5,3050.4,3.32169811]
[1720315826174,6.306,3050.5,3050.4,0.04344811]
[1720315826344,7.44109016,3050.5,3050.4,0.04344811]
[1720315826659,7.44109016,3050.5,3050.1,3.27857]
[1720315826865,2.2645,3050.3,3049.8,3.27887]
[1720315827065,2.2645,3050.3,3050.2,0.04345948]
[1720315827229,2.2645,3050.3,3049.8,3.27887]
[1720315827577,6.306,3050.5,3050.1,3.27858]
[1720315827745,6.306,3050.5,3050.2,3.27845]
[1720315827943,6.37160928,3050.5,3050.2,3.32195086]
[1720315829447,1.13511309,3050.4,3050.2,3.32195086]
[1720315829774,6.306,3050.5,3050.2,3.32195086]
[1720315829953,6.306,3050.5,3050.3,3.27836]
[1720315830158,6.306,3050.5,3050.4,3.27825]
[1720315830535,6.306,3050.5,3050.4,3.32170156]
[1720315830981,6.306,3050.5,3050.4,7.25995772]
[1720315836649,7.43,3051.0,3050.9,3.27772]
[1720315836896,6.306,3051.2,3051.0,3.2776]
[1720315837374,6.306,3051.2,3051.1,0.04325143]
[1720315837573,7.44081494,3051.2,3051.1,0.04325143]
[1720315837887,6.306,3051.2,3051.1,0.04325143]
[1720315838087,7.44082391,3051.2,3051.1,0.04325143]
[1720315838788,8.6428263,3051.2,3051.1,0.04325143]
[1720315838989,10.07274895,3051.2,3051.1,0.04325143]
[1720315839147,10.07274895,3051.2,3050.8,3.27782]
[1720315839479,2.63038821,3051.1,3050.9,0.0480736]
[1720315839777,1.13482391,3051.0,3050.9,0.0480736]
[1720315839982,1.13482391,3051.0,3050.8,3.27782]
[1720315840348,1.13482391,3051.0,3050.9,0.04807743]
[1720315840749,1.13483431,3051.0,3050.8,3.27782]
[1720315841052,1.13483431,3050.9,3050.8,3.27782]
[1720315841383,1.13483431,3050.9,3050.7,3.27788]
[1720315841585,1.13483431,3050.8,3050.7,3.27788]
[1720315841745,2.2802,3050.9,3050.7,3.27788]
[1720315841945,1.13483431,3050.8,3050.7,3.27788]
[1720315842549,1.20044359,3050.8,3050.3,3.27834]
[1720315842747,1.20044359,3050.7,3050.3,3.27834]
[1720315842949,1.13483431,3050.6,3050.3,6.55663]
[1720315843684,1.13483431,3050.6,3050.3,3.27829]
[1720315843983,1.13502811,3050.5,3050.3,3.27829]
[1720315844147,1.13502811,3050.4,3050.3,3.27829]
[1720315844859,1.13502811,3050.6,3050.3,3.27829]
[1720315846662,1.13502811,3050.6,3050.4,0.05411253]
[1720315846988,0.06560928,3050.7,3050.4,0.05411253]
[1720315847163,1.13505836,3050.6,3050.4,0.05411253]
[1720315847363,0.06560928,3050.7,3050.4,0.05411253]
[1720315847364,0.06560928,3050.7,3050.4,3.33235253]
[1720315847553,1.13499208,3050.6,3050.5,3.27815]
[1720315847891,1.13499208,3050.6,3050.5,3.33223172]
[1720315849351,1.13499208,3050.6,3050.5,3.99327989]
[1720315849551,1.13499208,3050.6,3050.5,7.27142989]
[1720315850361,0.06560928,3051.0,3050.7,3.27792]
[1720315850689,2.56495645,3050.9,3050.8,0.05398068]
[1720315851051,2.56495645,3050.9,3050.7,3.27792]
[1720315851278,2.56495645,3050.8,3050.7,3.27792]
[1720315851892,1.13493648,3050.8,3050.7,3.27792]
[1720315852052,1.42999306,3050.8,3050.7,3.27792]
[1720315852397,2.56495747,3050.8,3050.7,3.27792]
[1720315853287,1.13493648,3050.8,3050.7,3.27792]
[1720315853586,7.43,3051.1,3050.9,3.27769]
[1720315853792,2.56474613,3051.0,3050.9,3.27769]
[1720315853988,1.13484342,3051.0,3050.9,3.27769]
[1720315854495,2.56471041,3051.0,3050.9,3.27769]
[1720315854667,1.13484342,3051.0,3050.9,3.27769]
[1720315855090,1.13484342,3051.0,3050.9,6.55541]
[1720315856380,2.56467675,3051.0,3050.9,6.55541]
[1720315856814,6.306,3051.2,3051.1,3.2775]
[1720315856985,8.87056078,3051.2,3051.1,3.2775]
[1720315857293,8.87058759,3051.2,3051.1,3.2775]
[1720315858157,8.87055471,3051.2,3051.1,3.2775]
[1720315858379,8.87055471,3051.2,3051.1,6.555]
[1720315858597,8.87055471,3051.2,3051.1,7.2105]
[1720315859291,2.56455471,3051.2,3051.1,7.2105]
[1720315859488,9.13641739,3051.7,3051.6,3.27696]
[1720315859812,2.2783,3052.2,3051.6,3.27696]
[1720315859813,6.306,3051.9,3051.6,3.27696]
[1720315860125,4.27078304,3051.8,3051.6,3.27696]
[1720315860413,2.56415044,3051.7,3051.6,3.27696]
[1720315860629,4.90805972,3051.7,3051.4,6.55427]
[1720315860782,2.56415044,3051.6,3051.4,6.55427]
[1720315860974,2.56415044,3051.5,3051.4,6.55427]
[1720315862326,6.306,3051.9,3051.8,3.27675]
[1720315862476,9.73058019,3051.9,3051.8,3.27675]
[1720315862831,9.73058019,3051.9,3051.1,2.2632]
[1720315862832,9.73058019,3051.9,3051.6,3.27696]
[1720315863013,2.62968947,3051.8,3051.7,3.27686]
[1720315863516,2.62968947,3051.8,3051.4,3.27711]
[1720315863815,2.56408019,3051.7,3051.4,3.27711]
[1720315864037,5.59010434,3051.6,3051.2,3.27737]
[1720315864310,2.56408019,3051.5,3051.2,3.27732]
[1720315864523,2.56408019,3051.4,3051.2,3.27732]
[1720315864816,1.13454876,3051.3,3051.2,3.27732]
[1720315865015,1.13454876,3051.5,3051.3,3.27722]
[1720315865369,1.13454876,3051.5,3051.1,3.27745]
[1720315865370,1.42971597,3051.4,3051.1,3.27745]
[1720315865622,1.13454876,3051.3,3051.2,3.27739]
[1720315865790,2.36460928,3051.6,3051.2,3.27739]
[1720315866118,2.6300544,3051.5,3051.2,3.27739]
[1720315866318,2.56444512,3051.4,3051.2,3.27739]
[1720315866628,1.13471023,3051.3,3051.2,3.27739]
[1720315868002,2.36460928,3051.6,3051.2,3.27739]
[1720315868205,2.56434823,3051.5,3051.3,3.27723]
[1720315868429,1.13466736,3051.4,3051.3,3.27723]
[1720315868732,1.13465914,3051.4,3051.3,3.27723]
[1720315869100,3.41285914,3051.4,3051.3,3.27723]
[1720315869301,4.84257246,3051.4,3051.3,3.27723]
[1720315870143,2.56437246,3051.4,3051.3,3.27723]
[1720315872009,2.56442812,3051.4,3051.3,3.27723]
[1720315872404,2.56442812,3051.4,3051.3,6.55452]
[1720315872723,2.56442812,3051.4,3051.3,7.21652659]
[1720315872724,1.13470271,3051.4,3051.3,7.21652659]
[1720315872932,0.06560928,3051.8,3051.6,3.27695]
[1720315873234,2.56424665,3051.7,3051.6,3.27695]
[1720315875103,1.42955192,3051.7,3051.1,3.2775]
[1720315875300,0.06560928,3051.6,3051.3,3.27722]
[1720315875511,1.42968314,3051.5,3051.3,3.27719]
[1720315875710,1.42968314,3051.5,3050.7,2.3971]
[1720315875711,1.20027844,3051.4,3051.1,3.27742]
[1720315875915,2.5643523,3051.3,3051.2,3.27731]
[1720315876663,2.56441131,3051.3,3051.2,3.27731]
[1720315877227,1.13466916,3051.3,3051.2,3.27731]
[1720315877556,1.13467587,3051.5,3051.3,3.2772]
[1720315877743,2.56437267,3051.4,3051.3,3.2772]
[1720315878172,0.06560928,3051.6,3051.4,3.27715]
[1720315878374,2.56437293,3051.5,3051.4,3.932596]
[1720315878590,6.306,3051.9,3051.8,6.5535]
[1720315878901,7.44045523,3051.9,3051.8,6.5535]
[1720315879062,6.306,3051.9,3051.8,6.5535]
[1720315880968,7.44043129,3051.9,3051.8,6.5535]
[1720315881166,6.306,3051.9,3051.8,6.5535]
[1720315881708,7.44045758,3051.9,3051.8,6.5535]
[1720315884663,7.44045168,3051.9,3051.8,6.5535]
[1720315885387,6.306,3051.9,3051.8,6.5535]
[1720315886884,10.74,3052.5,3052.3,3.27621]
[1720315887120,1.1343795,3052.4,3052.3,3.27621]
[1720315887630,1.1343795,3052.4,3052.3,6.55242]
[1720315887813,6.306,3052.7,3052.0,3.27648]
[1720315887814,6.306,3052.7,3052.6,3.27589]
[1720315887989,7.44021858,3052.7,3052.6,3.27589]
[1720315888819,7.44021858,3052.7,3052.6,6.55178]
[1720315889119,6.306,3052.7,3052.6,6.55178]
[1720315890900,6.306,3052.7,3052.6,9.82767]
[1720315891211,1.87332135,3053.5,3053.3,3.27512]
[1720315891399,1.87332135,3053.5,3053.1,3.27535]
[1720315891400,0.06560928,3053.6,3053.4,3.27503]
[1720315891599,1.13395294,3053.5,3053.4,3.27503]
[1720315893316,6.37160928,3053.7,3053.4,3.27503]
[1720315893631,1.13392354,3053.6,3053.4,3.27503]
[1720315893830,0.98045328,3053.6,3053.4,3.27503]
[1720315894332,1.19957035,3053.5,3053.4,3.27503]
[1720315894543,0.06560928,3053.5,3053.4,3.27503]
[1720315894839,0.98045328,3053.6,3053.4,3.27503]
[1720315895494,1.04606256,3053.6,3053.1,3.27535]
[1720315895699,0.73520626,3053.5,3053.2,3.27521]
[1720315895893,0.06560928,3053.4,3053.2,3.27521]
[1720315896399,4.64540928,3053.4,3053.0,3.27543]
[1720315896610,0.53806155,3053.3,3053.0,3.27543]
[1720315896838,0.06560928,3053.2,3053.0,3.27543]
[1720315898247,0.06560928,3053.2,3052.6,3.27585]
[1720315898407,0.06560928,3053.2,3052.7,3.27571]
[1720315899333,2.299,3053.0,3052.5,3.27599]
[1720315899498,6.37160928,3052.9,3052.5,3.27599]
[1720315899934,6.37160928,3052.9,3052.6,3.27588]
[1720315900149,6.37160928,3052.9,3051.9,3.27658]
[1720315900150,6.306,3052.9,3052.8,3.27568]
[1720315900450,6.306,3052.9,3052.1,5.443]
[1720315900451,6.306,3052.9,3052.5,3.27596]
[1720315900664,0.06560928,3052.8,3052.5,3.27596]
[1720315902241,0.93085021,3052.8,3052.5,3.27596]
[1720315902555,0.06560928,3052.7,3052.5,3.27596]
[1720315902717,0.06560928,3052.7,3051.8,2.443]
[1720315902718,0.06560928,3052.7,3052.1,3.27636]
[1720315903045,0.06560928,3052.7,3052.2,3.27625]
[1720315903247,1.13435358,3052.6,3052.2,3.27625]
[1720315903423,0.06560928,3052.5,3052.2,3.27625]
[1720315904010,0.06560928,3052.5,3051.2,9.783]
[1720315904011,4.5798,3052.3,3051.2,9.783]
[1720315904260,4.5798,3052.3,3050.5,3.27808]
[1720315904261,0.06560928,3052.2,3051.1,3.27743]
[1720315904555,0.06560928,3052.2,3051.3,3.27727]
[1720315904556,2.299,3051.9,3051.3,3.27727]
[1720315904759,2.299,3051.9,3051.1,3.27743]
[1720315904760,1.20014228,3051.8,3051.1,3.27743]
[1720315904956,1.134533,3051.7,3051.1,3.27743]
[1720315905156,0.06560928,3051.6,3051.1,3.27743]
[1720315905725,0.06560928,3051.6,3050.9,3.27769]
[1720315906027,1.13475308,3051.5,3051.0,3.27759]
[1720315906223,0.06560928,3051.6,3051.0,3.27759]
[1720315906453,0.30025021,3051.6,3051.0,3.27759]
[1720315906970,7.44079457,3051.5,3051.0,3.27759]
[1720315907263,0.06560928,3051.4,3050.7,3.2779]
[1720315907464,0.06560928,3051.4,3050.9,3.27771]
[1720315907679,0.06560928,3051.4,3050.4,3.27818]
[1720315907824,2.00190664,3051.3,3050.4,3.27818]
[1720315908136,1.20045499,3051.2,3050.4,3.27818]
[1720315908468,2.3071,3051.0,3050.5,3.27814]
[1720315908775,0.06560928,3050.9,3050.5,3.27814]
[1720315909449,0.06560928,3050.9,3050.6,3.27801]
[1720315909769,2.37270928,3051.0,3050.6,3.27801]
[1720315909954,0.06560928,3051.0,3050.6,3.27801]
[1720315911134,0.06560928,3051.0,3050.6,3.33929988]
[1720315912840,0.06560928,3051.0,3050.6,0.06128988]
[1720315913036,0.23646093,3050.9,3050.4,3.27822]
[1720315913377,0.06560928,3051.0,3050.5,3.33192007]
[1720315916672,0.06560928,3051.0,3050.5,0.05378007]
[1720315917108,0.06560928,3051.0,3050.3,3.27832]
[1720315917412,0.06560928,3051.0,3050.4,0.05387982]
[1720315920742,2.299,3050.7,3050.4,0.05387982]
[1720315921029,6.60150928,3050.6,3050.4,0.05387982]
[1720315921544,6.60150928,3050.6,3050.5,0.0538964]
[1720315921891,6.60150928,3050.6,3050.1,3.27849]
[1720315922248,6.60150928,3050.6,3050.2,0.04359442]
[1720315922535,4.5808,3050.3,3050.2,0.04359442]
[1720315922894,4.5808,3050.3,3049.9,3.27876]
[1720315923089,0.06560928,3050.2,3050.0,0.04364718]
[1720315923703,0.06560928,3050.2,3050.0,3.32231718]
[1720315924291,0.06560928,3050.2,3050.0,0.04364718]
[1720315924525,0.53025021,3050.2,3049.6,3.27902]
[1720315924843,0.53025021,3050.2,3050.1,0.04369149]
[1720315925018,0.53025021,3050.2,3049.6,3.27902]
[1720315925218,0.53025021,3050.2,3050.1,0.04369149]
[1720315925931,3.80872021,3050.2,3049.4,0.00414188]
[1720315926092,2.299,3049.8,3049.4,0.00414188]
[1720315926290,2.2818,3049.6,3049.4,0.00414188]
[1720315926529,0.06560928,3049.5,3049.4,0.00414188]
[1720315929843,1.84645061,3049.5,3049.4,0.00414188]
[1720315929998,5.86639967,3049.5,3049.4,0.00414188]
[1720315930195,5.12567061,3049.5,3049.4,0.00414188]
[1720315930433,1.84645061,3049.5,3049.4,0.00414188]
[1720315930623,6.26131525,3049.5,3048.7,3.28007]
[1720315930823,2.299,3049.2,3048.7,3.28007]
[1720315931052,0.06560928,3049.1,3048.8,3.27997]
[1720315931216,1.77452189,3049.0,3048.8,3.27997]
[1720315931550,0.06560928,3048.9,3048.8,3.27997]
[1720315931841,6.60150928,3049.1,3048.6,3.28012]
[1720315932641,8.92660928,3049.1,3048.5,3.28028]
[1720315933835,8.92660928,3049.1,3048.6,3.28018]
[1720315934220,6.37160928,3049.1,3048.8,3.27989]
[1720315934440,6.306,3049.1,3048.8,3.27989]
[1720315935046,6.306,3049.1,3049.0,3.27976]
[1720315937167,1.7798511,3049.6,3048.9,3.27986]
[1720315937168,0.05717183,3049.6,3048.9,3.27986]
[1720315937326,7.43,3049.7,3049.6,3.27911]
[1720315937529,6.306,3050.0,3049.6,3.27911]
[1720315937530,6.306,3050.0,3049.9,6.55758]
[1720315937767,3.52,3050.2,3050.1,6.55716]
[1720315938761,3.52,3050.2,3050.1,3.27858]
[1720315940148,3.52,3050.2,3050.1,6.55716]
[1720315940448,3.52,3050.2,3050.1,7.212876]
[1720315940852,7.43,3050.5,3050.4,3.27825]
[1720315941043,8.605,3050.7,3050.4,3.27825]
[1720315941365,8.605,3050.7,3050.6,3.27804]
[1720315943473,8.605,3050.7,3050.2,3.27846]
[1720315943793,2.06115751,3050.6,3050.2,3.27846]
[1720315944075,0.92610928,3050.6,3050.4,3.27823]
[1720315944282,0.06560928,3050.6,3050.4,3.27823]
[1720315944642,6.37160928,3050.7,3050.4,3.27823]
[1720315944873,6.306,3050.7,3050.4,3.27823]
[1720315945859,6.306,3050.7,3050.6,3.27804]
[1720315946245,7.43,3051.1,3051.0,3.27761]
[1720315946492,7.43,3051.1,3051.0,6.55522]
[1720315949374,6.306,3051.5,3051.4,3.27718]
[1720315950390,6.306,3051.5,3051.4,6.55436]
[1720315950569,6.9366,3051.5,3051.0,3.27754]
[1720315950788,0.06560928,3051.4,3051.3,3.27729]
[1720315953216,0.06560928,3051.4,3050.0,3.27866]
[1720315953217,2.2634,3051.1,3050.0,3.27866]
[1720315953494,2.2634,3051.1,3049.8,3.27887]
[1720315953495,2.299,3050.4,3049.8,3.27887]
[1720315953654,6.37160928,3050.3,3049.8,3.27887]
[1720315954467,6.37160928,3050.3,3050.0,3.27866]
[1720315955660,6.37160928,3050.3,3050.2,3.27847]
[1720315955857,6.306,3050.3,3050.2,3.27847]
[1720315956767,6.306,3050.3,3050.2,6.55694]
[1720315956972,6.306,3050.3,3050.2,7.212634]
[1720315957459,6.306,3050.3,3050.2,6.55694]
[1720315959715,0.06560928,3050.9,3050.8,3.27782]
[1720315960007,10.74,3051.0,3050.8,3.27782]
[1720315960008,3.31,3051.0,3050.8,3.27782]
[1720315960396,3.31,3051.0,3050.5,3.27811]
[1720315961900,3.31,3051.0,3050.7,3.27791]
[1720315962608,0.06560928,3050.9,3050.3,3.27829]
[1720315962976,0.06560928,3050.9,3050.4,3.27824]
[1720315964166,1.1350364,3050.8,3050.4,3.27824]
[1720315964398,0.06560928,3050.7,3050.4,3.27824]
[1720315964602,0.06560928,3050.9,3050.4,3.27824]
[1720315964901,1.13503637,3050.8,3050.5,3.27814]
[1720315965079,0.06560928,3050.7,3050.5,3.27814]
[1720315965281,0.06560928,3050.9,3050.5,3.27814]
[1720315965477,1.13500711,3050.8,3050.5,3.27814]
[1720315965806,0.06560928,3050.7,3050.5,3.27814]
[1720315966001,0.06560928,3050.9,3050.5,3.27814]
[1720315966306,1.13501565,3050.8,3050.4,3.27824]
[1720315966503,1.20062493,3050.7,3050.4,3.27824]
[1720315966805,0.06560928,3050.6,3050.4,3.27824]
[1720315966966,0.06560928,3050.9,3050.4,3.27824]
[1720315967174,1.13500468,3050.8,3050.4,3.27824]
[1720315967367,1.20061396,3050.7,3050.5,3.27812]
[1720315967567,0.06560928,3050.9,3050.5,3.27812]
[1720315967788,1.13493587,3050.8,3050.5,3.27812]
[1720315968112,1.20054515,3050.7,3050.3,3.27829]
[1720315968319,1.13493587,3050.6,3050.5,3.27815]
[1720315968472,3.31,3051.0,3050.5,3.27815]
[1720315968808,1.13495545,3050.9,3050.5,3.27815]
[1720315968968,1.13495545,3050.8,3050.5,3.27815]
[1720315969168,1.13495545,3050.7,3050.5,3.27815]
[1720315969403,3.31,3051.0,3050.5,3.27815]
[1720315969564,1.13500965,3050.6,3050.5,3.27815]
[1720315969964,1.13501537,3050.6,3050.5,3.27815]
[1720315970515,1.13501537,3050.6,3050.3,3.27829]
[1720315970799,1.20062465,3050.5,3050.1,3.27857]
[1720315971017,0.06560928,3050.5,3050.1,3.27857]
[1720315971300,0.06560928,3050.8,3050.2,3.27845]
[1720315971511,1.1350478,3050.7,3050.2,3.27845]
[1720315971818,1.20065708,3050.6,3050.2,3.27845]
[1720315972025,1.1350478,3050.5,3050.2,3.27845]
[1720315972225,0.06560928,3050.4,3050.2,3.27845]
[1720315972389,0.331,3050.9,3050.2,3.27845]
[1720315972390,0.06560928,3050.8,3050.2,3.27845]
[1720315972911,1.13505419,3050.7,3050.2,3.27845]
[1720315973127,1.20066347,3050.6,3050.2,3.27845]
[1720315973314,1.13505419,3050.5,3050.2,3.27845]
[1720315973608,0.06560928,3050.4,3050.2,3.27845]
[1720315973990,0.06560928,3050.8,3050.4,3.27824]
[1720315974188,1.13502303,3050.7,3050.6,3.27804]
[1720315974902,1.13088115,3050.7,3050.6,3.27804]
[1720315975290,0.06560928,3050.8,3050.6,3.27804]
[1720315975661,0.06560928,3050.9,3050.7,3.27793]
[1720315980593,0.06560928,3050.9,3050.4,3.27821]
[1720315980594,1.14617021,3050.9,3050.4,3.27821]
[1720315980817,1.4301138,3050.8,3050.4,3.27821]
[1720315981149,0.06560928,3050.7,3050.4,3.27821]
[1720315981549,0.06560928,3050.7,3050.5,3.27815]
[1720315982059,0.06560928,3050.9,3050.5,3.27815]
[1720315982346,1.43003095,3050.8,3050.5,3.27815]
[1720315982646,0.06560928,3050.7,3050.5,3.27815]
[1720315983425,0.06560928,3050.9,3050.6,3.27804]
[1720315983622,3.31,3051.0,3050.1,2.2747]
[1720315983623,3.37560928,3051.0,3050.8,3.27775]
[1720315983809,1.42994513,3050.9,3050.8,6.55548]
[1720315984814,2.56481245,3050.9,3050.8,6.55548]
[1720315985847,1.13486732,3050.9,3050.8,6.55548]
[1720315987421,2.56476131,3050.9,3050.8,6.55548]
[1720315987845,1.13486732,3050.9,3050.8,6.55548]
[1720315988159,6.306,3051.2,3051.1,3.2775]
[1720315988321,8.87073273,3051.2,3050.9,3.27771]
[1720315988520,2.63036989,3051.1,3050.9,3.27771]
[1720315988852,2.56476061,3051.0,3050.9,3.27771]
[1720315989266,2.56476061,3051.0,3050.7,3.27789]
[1720315989429,2.63036989,3050.9,3050.7,3.27789]
[1720315989628,2.56476061,3050.8,3050.3,3.27832]
[1720315989837,2.63036989,3050.7,3050.3,3.27832]
[1720315990165,2.56476061,3050.6,3050.3,3.27832]
[1720315990344,0.06560928,3050.7,3050.5,3.27814]
[1720315990517,2.56510722,3050.6,3049.9,3.27876]
[1720315990738,8.9367165,3050.5,3049.9,3.27876]
[1720315991035,8.9367165,3050.5,3048.8,12.26]
[1720315991036,7.14770722,3050.4,3049.6,3.27908]
[1720315991241,1.7061838,3050.1,3049.6,3.27908]
[1720315991542,2.63132036,3050.0,3049.6,3.27908]
[1720315991740,2.56571108,3049.9,3049.6,3.27908]
[1720315991941,2.63132036,3049.8,3049.6,3.27908]
[1720315992141,2.63132036,3049.7,3049.6,3.27908]
[1720315992367,2.56571108,3049.7,3049.6,3.27908]
[1720315993553,1.1352699,3049.7,3049.6,3.27908]
[1720315993751,1.43053827,3049.7,3049.6,3.27908]
[1720315994057,2.56580817,3049.7,3049.6,3.27908]
[1720315994263,0.06560928,3049.8,3049.6,3.27908]
[1720315994468,2.56591061,3049.7,3049.6,3.27908]
[1720315994803,1.13535326,3049.7,3049.6,3.27908]
[1720315995097,2.56590052,3049.7,3049.6,3.27908]
[1720315995305,1.13535326,3049.7,3049.6,3.27908]
[1720315996289,0.06560928,3050.0,3049.6,3.27908]
[1720315996508,2.56584873,3049.9,3049.6,3.27908]
[1720315996677,2.63145801,3049.8,3049.6,3.27908]
[1720315996863,0.06560928,3049.7,3049.6,3.27908]
[1720315997059,0.06560928,3050.1,3049.6,3.27908]
[1720315997264,2.5658569,3050.0,3049.6,3.27908]
[1720315997486,1.49613725,3049.9,3049.6,3.27908]
[1720315997668,1.43052797,3049.8,3049.6,3.27908]
[1720315997869,0.06560928,3049.7,3049.6,3.27908]
[1720315998069,1.77221466,3050.2,3049.7,3.279]
[1720315998285,2.56576281,3050.1,3049.7,3.279]
[1720315998599,2.63137209,3050.0,3049.7,3.279]
[1720315998805,0.06560928,3050.0,3049.7,3.279]
[1720315999399,0.06560928,3050.3,3050.1,3.27849]
[1720315999603,1.43031365,3050.2,3050.1,3.27849]
[1720315999763,9.616,3050.5,3050.2,3.27843]
[1720315999964,2.56534311,3050.4,3050.2,3.27843]
[1720316000267,9.616,3050.5,3050.2,3.27843]
[1720316000471,2.63093389,3050.4,3050.0,3.27866]
[1720316000700,0.06560928,3050.4,3050.1,3.27857]
[1720316001007,2.5654898,3050.3,3050.0,3.27866]
[1720316001295,1.29030267,3050.4,3050.1,3.27857]
[1720316001504,2.56546104,3050.3,3050.1,3.27857]
[1720316001666,1.29030267,3050.4,3050.1,3.27857]
[1720316002014,2.56545658,3050.3,3050.1,3.27857]
[1720316002298,0.06560928,3050.2,3050.1,3.27857]
[1720316002473,0.06560928,3050.3,3050.1,3.27857]
[1720316003109,9.616,3050.5,3050.1,3.27857]
[1720316003264,2.56545258,3050.4,3050.1,3.27857]
[1720316003469,2.56545258,3050.3,3050.1,3.27857]
[1720316003709,0.06560928,3050.4,3050.1,3.27857]
[1720316004004,2.56541845,3050.3,3050.1,3.27857]
[1720316004167,0.06560928,3050.4,3050.1,3.27857]
[1720316004367,2.56540452,3050.3,3050.1,3.27857]
[1720316004595,0.06560928,3050.4,3050.1,3.27857]
[1720316004904,2.56541209,3050.3,3050.1,3.27857]
[1720316005202,2.56545999,3050.2,3050.1,3.27857]
[1720316005780,2.56545999,3050.2,3049.9,3.27879]
[1720316006107,1.49597711,3050.1,3049.9,3.27879]
[1720316006303,0.06560928,3050.1,3049.7,3.27898]